bitfinex/quotes_SOLUSD_20241210
["timestamp","ask_amount","ask_price","bid_price","bid_amount"]
[1733833320546,20.0,215.08,215.01,14.25600566]
[1733833320746,23.776884,215.07,214.99,14.25600566]
[1733833320950,23.776884,215.07,214.98,14.25600566]
[1733833321165,23.776884,215.07,214.95,0.69745374]
[1733833321166,23.776884,215.03,214.97,22.85693745]
[1733833321369,20.0,215.04,214.98,22.85693745]
[1733833321545,23.776884,215.07,215.01,22.85693745]
[1733833321755,23.776884,215.09,215.02,22.85693745]
[1733833322268,23.776884,215.09,215.04,22.85693745]
[1733833322779,23.776884,215.12,215.06,22.85693745]
[1733833322947,23.776884,215.12,215.04,22.85693745]
[1733833323149,23.776884,215.12,215.01,22.85693745]
[1733833323150,23.776884,215.08,215.01,22.85693745]
[1733833323346,20.0,215.05,214.99,22.85693745]
[1733833323561,20.0,215.05,214.95,0.69745489]
[1733833323562,23.776884,215.04,214.97,22.85693745]
[1733833323775,0.12549,215.03,214.95,22.85693745]
[1733833324273,0.12549,215.03,214.92,0.69763965]
[1733833324274,0.12549,215.03,214.96,22.85693745]
[1733833324568,23.776884,215.04,214.99,22.85693745]
[1733833325056,6.0501,215.13,214.99,22.85693745]
[1733833325250,20.0,215.1,215.01,22.85693745]
[1733833325447,20.0,215.09,215.03,22.85693745]
[1733833325672,20.0,215.09,215.02,22.85693745]
[1733833325845,20.0,215.1,215.02,22.85693745]
[1733833326044,0.12549,215.09,215.02,22.85693745]
[1733833326257,20.0,215.1,215.02,22.85693745]
[1733833326453,20.0,215.1,215.05,22.85693745]
[1733833327057,6.0501,215.13,215.06,22.85693745]
[1733833327442,6.0501,215.13,215.05,22.85693745]
[1733833328963,23.776884,215.12,215.05,22.85693745]
[1733833330275,23.776884,215.14,215.08,22.85693745]
[1733833330480,6.0501,215.18,215.09,0.69717602]
[1733833330777,9.80988302,215.2,215.15,22.85693745]
[1733833331278,9.80988302,215.2,215.18,22.85693745]
[1733833331650,9.80988302,215.2,215.16,22.85693745]
[1733833331851,9.80988302,215.2,215.17,22.85693745]
[1733833332057,9.80988302,215.2,215.15,22.85693745]
[1733833332268,9.80988302,215.2,215.14,22.85693745]
[1733833333181,23.776884,215.19,215.15,22.85693745]
[1733833333374,9.80988302,215.2,215.17,22.85693745]
[1733833333549,23.776884,215.19,215.15,22.85693745]
[1733833333746,23.776884,215.19,215.14,22.85693745]
[1733833333950,23.776884,215.19,215.15,22.85693745]
[1733833335855,9.80988302,215.2,215.17,22.85693745]
[1733833336050,9.80988302,215.2,215.15,22.85693745]
[1733833336481,23.776884,215.19,215.15,22.85693745]
[1733833336871,23.776884,215.19,215.12,22.85693745]
[1733833337067,23.776884,215.15,215.1,22.85693745]
[1733833337282,23.776884,215.11,215.04,22.85693745]
[1733833337579,23.776884,215.11,214.98,6.2657]
[1733833337580,23.776884,215.11,215.03,22.85693745]
[1733833337898,23.776884,215.11,215.04,22.85693745]
[1733833338059,23.776884,215.11,215.03,22.85693745]
[1733833338256,23.776884,215.11,215.04,22.85693745]
[1733833338965,23.776884,215.11,215.05,22.85693745]
[1733833339180,20.0,215.12,215.08,22.85693745]
[1733833339363,23.776884,215.14,215.08,22.85693745]
[1733833339693,23.776884,215.14,215.07,22.85693745]
[1733833339883,23.776884,215.14,215.01,0.69723039]
[1733833339884,23.776884,215.14,215.05,22.85693745]
[1733833340182,0.12549,215.13,215.05,22.85693745]
[1733833340878,0.12549,215.13,215.06,22.85693745]
[1733833341255,0.12549,215.13,215.0,0.69732378]
[1733833341256,23.776884,215.1,215.03,22.85693745]
[1733833341455,23.776884,215.1,215.02,22.85693745]
[1733833341674,20.0,215.07,215.0,22.85693745]
[1733833341872,20.0,215.07,214.96,22.85693745]
[1733833341873,20.0,215.03,214.96,22.85693745]
[1733833342180,23.776884,215.02,214.95,22.85693745]
[1733833342369,23.776884,214.98,214.91,22.85693745]
[1733833343085,1.6234,215.03,214.96,22.85693745]
[1733833343263,7.08239554,215.19,214.89,0.5569663]
[1733833343264,20.0,215.04,214.99,22.85693745]
[1733833343657,1.6234,215.09,215.01,22.85693745]
[1733833343887,1.6234,215.09,215.02,23.55432777]
[1733833344180,1.6234,215.09,215.02,0.69739032]
[1733833344986,23.776884,215.08,215.02,0.69739032]
[1733833345586,23.776884,215.08,214.91,10.0]
[1733833345587,0.12549,215.07,214.98,22.85693745]
[1733833345760,0.12549,215.07,214.9,12.74072808]
[1733833345761,20.0,215.05,214.97,22.85693745]
[1733833345969,23.776884,215.04,214.97,22.85693745]
[1733833346163,23.776884,215.04,214.96,22.85693745]
[1733833346876,23.776884,215.04,214.97,22.85693745]
[1733833347198,1.6234,215.09,215.01,22.85693745]
[1733833347900,0.12549,215.12,215.03,22.85693745]
[1733833348191,0.12549,215.12,214.96,1.6652]
[1733833348192,6.1463,215.13,215.05,22.85693745]
[1733833348802,1.551,215.14,215.05,22.85693745]
[1733833348968,1.551,215.14,215.07,22.85693745]
[1733833349291,1.551,215.14,215.05,22.85693745]
[1733833349495,1.551,215.14,215.07,22.85693745]
[1733833349663,1.551,215.14,215.06,22.85693745]
[1733833349862,1.551,215.14,215.07,22.85693745]
[1733833350266,6.0827,215.18,215.09,22.85693745]
[1733833350466,20.0,215.15,215.09,22.85693745]
[1733833350687,20.0,215.15,215.03,0.69715322]
[1733833350688,20.0,215.15,215.08,22.85693745]
[1733833350888,20.0,215.15,215.09,23.55408147]
[1733833351293,20.0,215.15,215.1,22.85693745]
[1733833351872,20.0,215.15,215.08,22.85693745]
[1733833352968,20.0,215.15,215.09,0.69721872]
[1733833353180,20.0,215.15,215.1,22.85693745]
[1733833353586,20.0,215.15,215.09,22.85693745]
[1733833353787,20.0,215.15,215.08,22.85693745]
[1733833353985,20.0,215.15,215.08,23.55413197]
[1733833354299,6.0827,215.18,215.08,23.55413197]
[1733833354504,20.0,215.14,215.08,22.85693745]
[1733833354717,20.0,215.14,215.05,0.6972501]
[1733833354718,23.776884,215.13,215.05,0.6972501]
[1733833354884,23.902374,215.17,215.09,22.85693745]
[1733833355071,23.776884,215.17,215.09,22.85693745]
[1733833355771,23.776884,215.17,215.1,0.69712835]
[1733833355998,20.0,215.14,215.07,22.85693745]
[1733833356181,20.0,215.14,215.03,0.69712817]
[1733833356182,23.776884,215.13,215.06,22.85693745]
[1733833356496,23.902374,215.13,215.03,23.55406562]
[1733833356692,23.776884,215.05,214.98,22.85693745]
[1733833356899,20.0,215.06,214.99,22.85693745]
[1733833357108,23.776884,215.09,215.01,22.85693745]
[1733833357271,23.776884,215.09,215.03,22.85693745]
[1733833357474,23.902374,215.13,215.02,22.85693745]
[1733833357672,23.776884,215.09,215.02,22.85693745]
[1733833357894,20.0,215.1,215.04,22.85693745]
[1733833358393,23.902374,215.14,215.02,22.85693745]
[1733833359005,23.776884,215.1,215.02,22.85693745]
[1733833359169,23.776884,215.1,215.03,0.69735211]
[1733833360303,23.776884,215.1,215.01,22.85693745]
[1733833360795,6.0827,215.18,214.98,22.85693745]
[1733833360796,23.776884,215.06,214.98,22.85693745]
[1733833361016,23.776884,215.06,214.97,22.85693745]
[1733833361416,23.776884,215.02,214.95,0.6974365]
[1733833361719,23.776884,215.02,214.91,23.55461045]
[1733833361917,0.12549,215.01,214.91,23.55461045]
[1733833362120,23.776884,214.98,214.9,22.85693745]
[1733833362610,23.776884,214.98,214.89,0.5569663]
[1733833364085,23.776884,214.98,214.89,23.41390375]
[1733833364759,23.776884,214.98,214.91,22.85693745]
[1733833365087,23.776884,214.98,214.9,0.69781122]
[1733833365088,6.0827,215.06,214.94,22.85693745]
[1733833365416,6.0827,215.06,214.95,22.85693745]
[1733833365993,6.0827,215.06,214.91,22.85693745]
[1733833366286,6.0827,215.06,214.89,0.5569663]
[1733833366287,6.0827,215.06,214.9,23.55467753]
[1733833366493,0.12549,215.02,214.91,22.85693745]
[1733833367094,23.776884,214.98,214.91,23.55467595]
[1733833367819,6.0395,215.11,214.94,20.0]
[1733833368024,6.0395,215.11,214.97,22.85693745]
[1733833368610,2.8465979,215.1,214.96,22.85693745]
[1733833369110,23.776884,215.07,214.96,22.85693745]
[1733833369811,20.0,215.04,214.96,22.85693745]
[1733833370012,23.776884,215.03,214.96,22.85693745]
[1733833370536,23.776884,215.03,214.95,23.55445264]
[1733833370902,23.776884,215.03,214.95,22.85693745]
[1733833371104,0.12549,215.06,214.89,12.1904663]
[1733833371105,23.776884,214.99,214.9,23.55462108]
[1733833371406,0.12549,214.98,214.89,0.5569663]
[1733833371611,23.776884,214.95,214.89,0.5569663]
[1733833374823,23.776884,214.95,214.89,23.41390375]
[1733833375738,23.776884,214.95,214.89,0.5569663]
[1733833376541,20.0,214.92,214.89,0.5569663]
[1733833376833,23.776884,214.91,214.89,0.5569663]
[1733833378446,43.902374,214.97,214.89,0.5569663]
[1733833383026,1.5313,214.98,214.92,22.85693745]
[1733833383225,11.87677132,215.07,214.92,22.85693745]
[1733833383226,1.6451,215.03,214.92,22.85693745]
[1733833383418,1.6451,215.03,214.95,22.85693745]
[1733833383625,1.6451,215.03,214.96,22.85693745]
[1733833383828,1.6451,215.03,214.97,22.85693745]
[1733833384040,6.2707,215.06,214.97,22.85693745]
[1733833384339,6.2707,215.06,214.99,22.85693745]
[1733833384651,1.6451,215.08,214.99,22.85693745]
[1733833384829,1.6451,215.08,215.0,22.85693745]
[1733833385344,1.6451,215.08,215.01,14.28131856]
[1733833385545,6.2707,215.11,215.03,14.28131856]
[1733833385715,6.2707,215.11,215.01,14.28131856]
[1733833386348,6.2707,215.11,215.04,14.28131856]
[1733833386716,6.2707,215.11,214.98,0.69761678]
[1733833386717,6.2707,215.11,215.03,14.28131856]
[1733833387144,6.2707,215.11,215.04,14.28131856]
[1733833387332,1.6451,215.13,215.04,22.84181347]
[1733833387667,1.6451,215.13,214.98,0.69761678]
[1733833387668,21.6451,215.13,214.99,22.84181347]
[1733833387817,21.6451,215.13,214.98,0.69761678]
[1733833387818,20.0,215.12,214.98,22.84181347]
[1733833388020,20.0,215.1,214.95,22.84181347]
[1733833388339,20.0,215.08,214.92,30.00201616]
[1733833388541,20.0,215.0,214.91,22.84181347]
[1733833388713,23.776884,214.99,214.91,22.84181347]
[1733833389628,23.776884,214.99,214.94,22.84181347]
[1733833389828,23.902374,215.08,214.96,22.84181347]
[1733833390126,23.902374,215.08,214.97,22.84181347]
[1733833390342,23.902374,215.08,214.98,22.84181347]
[1733833391143,20.0,215.05,214.98,22.84181347]
[1733833391642,20.0,215.05,214.95,0.69766833]
[1733833391643,23.776884,215.04,214.99,22.84181347]
[1733833391840,23.776884,215.04,214.98,22.84181347]
[1733833392043,20.0,215.05,214.98,22.84181347]
[1733833392340,20.0,215.06,214.99,22.84181347]
[1733833392527,1.6451,215.13,215.01,22.84181347]
[1733833392725,1.6451,215.13,214.95,12.32816833]
[1733833392726,1.6451,215.13,215.03,22.84181347]
[1733833393038,80.8,215.21,214.97,1.525]
[1733833393039,10.0,215.34,215.15,20.0]
[1733833393239,10.0,215.36,215.22,22.84181347]
[1733833393547,2.84034625,215.32,215.23,22.84181347]
[1733833393918,2.84034625,215.32,215.24,22.84181347]
[1733833394120,2.84034625,215.32,215.23,22.84181347]
[1733833395332,2.84034625,215.32,215.22,22.84181347]
[1733833396255,23.902374,215.36,215.25,22.84181347]
[1733833396558,2.83465603,215.33,215.25,22.84181347]
[1733833397631,23.902374,215.32,215.25,22.84181347]
[1733833397853,23.776884,215.28,215.25,22.84181347]
[1733833398570,0.12549,215.27,215.22,22.84181347]
[1733833398769,23.776884,215.24,215.19,22.84181347]
[1733833399153,0.12549,215.23,215.16,22.84181347]
[1733833399766,20.0,215.21,215.16,22.84181347]
[1733833399972,23.776884,215.2,215.15,22.84181347]
[1733833400356,23.776884,215.2,215.09,0.69712169]
[1733833400357,20.0,215.17,215.12,22.84181347]
[1733833400570,0.12549,215.15,215.06,0.69720161]
[1733833400879,23.902374,215.12,215.06,22.84181347]
[1733833401069,23.776884,215.12,215.06,22.84181347]
[1733833401246,23.776884,215.12,215.05,22.84181347]
[1733833401449,0.12549,215.11,215.03,22.84181347]
[1733833401652,23.776884,215.08,215.03,22.84181347]
[1733833402052,23.776884,215.08,215.04,22.84181347]
[1733833402485,23.776884,215.08,215.03,22.84181347]
[1733833402852,23.776884,215.08,215.0,0.69740288]
[1733833402853,23.776884,215.08,215.04,22.84181347]
[1733833403058,23.776884,215.08,215.03,22.84181347]
[1733833403262,0.12549,215.07,214.99,22.84181347]
[1733833403550,23.776884,215.04,214.99,0.85053789]
[1733833404263,0.12549,215.03,214.99,0.85053789]
[1733833404588,23.776884,215.0,214.93,22.84181347]
[1733833404794,23.776884,215.0,214.93,0.85077533]
[1733833404961,0.12549,214.99,214.93,23.6925888]
[1733833405166,0.12549,214.99,214.93,0.85077533]
[1733833405364,23.776884,214.96,214.93,0.85077533]
[1733833405764,20.0,214.94,214.93,0.85077533]
[1733833405978,43.776884,214.94,214.89,0.5569663]
[1733833406180,23.776884,214.93,214.89,0.5569663]
[1733833406663,0.12549,214.99,214.91,22.84181347]
[1733833406891,0.12549,214.99,214.89,0.5569663]
[1733833406892,0.12549,214.99,214.93,22.84181347]
[1733833407062,23.776884,215.04,214.94,22.84181347]
[1733833407267,0.12549,215.03,214.95,22.84181347]
[1733833407477,1.627,215.09,214.97,22.84181347]
[1733833407668,1.627,215.09,214.99,22.84181347]
[1733833407877,1.627,215.09,215.0,22.84181347]
[1733833408078,11.511,215.16,215.01,22.84181347]
[1733833408287,11.511,215.16,214.95,0.69769361]
[1733833408288,1.511,215.16,215.02,22.84181347]
[1733833408470,1.511,215.16,215.03,22.84181347]
[1733833408862,1.511,215.16,215.02,22.84181347]
[1733833409092,1.511,215.16,214.95,0.69769361]
[1733833409093,10.0,215.15,214.97,22.84181347]
[1733833409281,10.0,215.13,214.97,22.84181347]
[1733833409471,23.902374,215.12,214.95,22.84181347]
[1733833409673,23.902374,215.1,214.95,22.84181347]
[1733833409996,23.776884,215.02,214.97,22.84181347]
[1733833410497,23.776884,215.02,214.98,22.84181347]
[1733833410673,20.0,215.13,215.0,22.84181347]
[1733833410991,20.0,215.13,215.01,22.84181347]
[1733833411194,1.511,215.16,215.02,22.84181347]
[1733833411771,1.511,215.16,215.03,22.84181347]
[1733833411974,1.511,215.16,214.95,11.6301]
[1733833411975,1.511,215.16,215.04,22.84181347]
[1733833412312,1.511,215.16,215.02,22.84181347]
[1733833412795,1.511,215.16,215.03,22.84181347]
[1733833413093,0.12549,215.14,215.04,22.84181347]
[1733833413391,23.902374,215.11,215.04,22.84181347]
[1733833413601,23.776884,215.07,215.02,22.84181347]
[1733833413905,23.776884,215.07,215.0,22.84181347]
[1733833414211,23.776884,215.07,215.01,22.84181347]
[1733833414379,1.511,215.16,215.06,22.84181347]
[1733833414578,23.902374,215.15,215.06,22.84181347]
[1733833414777,1.511,215.16,215.08,22.84181347]
[1733833414980,6.5503,215.17,215.08,22.84181347]
[1733833415296,9.81118225,215.18,215.1,22.84181347]
[1733833415503,9.81118225,215.18,215.09,22.84181347]
[1733833415677,9.81118225,215.18,215.07,22.84181347]
[1733833416012,9.81118225,215.18,215.06,22.84181347]
[1733833416377,9.81118225,215.18,215.07,22.84181347]
[1733833416578,23.902374,215.17,215.07,22.84181347]
[1733833416780,23.776884,215.13,215.1,22.84181347]
[1733833417206,23.776884,215.13,215.09,22.84181347]
[1733833417778,9.81118225,215.18,215.1,22.84181347]
[1733833417988,9.81118225,215.18,215.11,22.84181347]
[1733833418186,9.81118225,215.18,215.1,22.84181347]
[1733833418513,9.81118225,215.18,215.11,22.84181347]
[1733833418885,9.81118225,215.18,215.12,22.84181347]
[1733833419080,23.776884,215.17,215.12,22.84181347]
[1733833419488,23.776884,215.17,215.1,22.84181347]
[1733833419813,23.776884,215.17,215.07,22.84181347]
[1733833420111,23.776884,215.17,215.04,22.84181347]
[1733833420490,23.776884,215.09,215.01,22.84181347]
[1733833420688,23.902374,215.22,215.05,22.84181347]
[1733833420881,20.0,215.15,215.05,22.84181347]
[1733833421089,23.02391142,215.14,215.04,22.84181347]
[1733833421287,23.02391142,215.14,215.04,23.53910465]
[1733833421715,23.02391142,215.14,215.05,22.84181347]
[1733833422327,23.02391142,215.14,215.08,22.84181347]
[1733833422533,23.02391142,215.14,215.09,22.84181347]
[1733833422836,23.02391142,215.14,215.07,22.84181347]
[1733833422995,23.02391142,215.14,215.05,22.84181347]
[1733833424921,23.776884,215.1,215.01,22.84181347]
[1733833425113,23.776884,215.1,215.0,22.84181347]
[1733833425513,23.776884,215.06,214.98,22.84181347]
[1733833425817,23.776884,215.06,214.99,22.84181347]
[1733833426116,23.776884,215.06,214.96,22.84181347]
[1733833426508,23.776884,215.06,214.98,22.84181347]
[1733833426819,23.776884,215.06,214.97,22.84181347]
[1733833428001,23.776884,215.06,215.0,22.84181347]
[1733833428413,23.776884,215.06,214.99,22.84181347]
[1733833429015,23.776884,215.06,214.98,22.84181347]
[1733833430220,23.776884,215.06,214.99,22.84181347]
[1733833432243,23.776884,215.06,214.98,22.84181347]
[1733833432435,23.776884,215.06,214.95,22.84181347]
[1733833432436,0.12549,215.05,214.95,22.84181347]
[1733833432641,20.0,215.03,214.96,22.84181347]
[1733833432949,23.776884,215.02,214.96,22.84181347]
[1733833433119,20.0,215.07,214.98,22.84181347]
[1733833433315,20.0,215.03,214.98,22.84181347]
[1733833433543,23.776884,215.06,214.99,22.84181347]
[1733833435149,23.776884,215.06,214.99,23.53933907]
[1733833435342,20.0,215.07,215.02,22.84181347]
[1733833435546,20.0,215.07,215.01,22.84181347]
[1733833435843,20.0,215.07,215.0,22.84181347]
[1733833436422,20.0,215.07,215.01,23.53927156]
[1733833436845,23.776884,215.06,214.99,22.84181347]
[1733833437141,23.776884,215.06,214.98,22.84181347]
[1733833437352,23.776884,215.06,215.0,22.84181347]
[1733833437519,23.776884,215.06,214.99,22.84181347]
[1733833438022,6.2595,215.1,215.01,22.84181347]
[1733833438226,1.6143,215.11,215.04,22.84181347]
[1733833438429,18.621593,215.14,215.05,22.84181347]
[1733833438845,6.3996,215.15,215.05,22.84181347]
[1733833439039,6.3996,215.15,215.03,22.84181347]
[1733833439351,6.3996,215.15,214.97,20.8228175]
[1733833439352,20.0,215.11,215.02,22.84181347]
[1733833439517,23.776884,215.06,214.98,22.84181347]
[1733833440320,23.776884,215.06,214.97,22.84181347]
[1733833440521,23.776884,215.02,214.94,22.84181347]
[1733833440942,23.776884,215.02,214.96,22.84181347]
[1733833441721,23.776884,215.02,214.97,22.84181347]
[1733833442825,20.0,215.08,214.99,22.84181347]
[1733833443029,23.776884,215.07,215.02,22.84181347]
[1733833443350,23.776884,215.07,215.01,14.27793806]
[1733833443521,23.776884,215.07,215.0,14.97544476]
[1733833444153,23.776884,215.07,214.98,14.27793806]
[1733833444543,23.776884,215.07,214.97,14.27793806]
[1733833445363,20.0,215.04,214.97,14.27793806]
[1733833445556,23.776884,215.03,214.97,14.27793806]
[1733833448459,23.776884,214.99,214.93,14.27793806]
[1733833448634,23.776884,214.99,214.9,14.97570147]
[1733833448833,0.12549,215.02,214.89,0.5569663]
[1733833448834,23.776884,214.95,214.89,0.5569663]
[1733833449333,23.776884,214.91,214.89,0.5569663]
[1733833451034,1.5227,214.94,214.89,0.5569663]
[1733833451231,23.776884,214.93,214.89,0.5569663]
[1733833451842,23.776884,214.93,214.89,14.83490436]
[1733833452047,6.3996,214.98,214.9,14.27793806]
[1733833452235,6.3996,214.98,214.89,0.5569663]
[1733833452236,6.3996,214.98,214.91,14.97574669]
[1733833452440,6.3996,214.98,214.89,0.5569663]
[1733833453442,23.776884,214.93,214.89,0.5569663]
[1733833453637,20.0,214.94,214.89,0.5569663]
[1733833454262,23.776884,214.94,214.89,0.5569663]
[1733833456454,20.0,214.91,214.89,0.5569663]
[1733833456839,23.776884,214.9,214.89,0.5569663]
[1733833458660,23.902374,214.9,214.89,0.5569663]
[1733833460451,42.542973,214.9,214.89,0.5569663]
[1733833462702,20.12549,214.85,214.75,312.0]
[1733833462857,23.776884,214.8,214.73,29.41494775]
[1733833463060,23.776884,214.8,214.72,22.87764775]
[1733833463382,23.776884,214.8,214.7,23.57602926]
[1733833463684,20.0,214.77,214.7,23.57602926]
[1733833463881,23.776884,214.8,214.73,22.87764775]
[1733833464050,0.12549,214.88,214.77,22.87764775]
[1733833464051,23.776884,214.84,214.77,22.87764775]
[1733833464383,0.12549,214.88,214.79,22.87764775]
[1733833464569,0.12549,214.88,214.78,23.57587315]
[1733833464888,6.2843,214.89,214.79,22.87764775]
[1733833465087,1.651,214.9,214.79,22.87764775]
[1733833465088,7.9353,214.95,214.85,22.87764775]
[1733833465467,7.9353,214.95,214.8,2.30332939]
[1733833465468,7.9353,214.95,214.83,22.87764775]
[1733833465865,7.9353,214.95,214.79,29.41494775]
[1733833466200,10.0,214.94,214.77,22.87764775]
[1733833466411,20.0,214.91,214.78,22.87764775]
[1733833466574,0.12549,214.9,214.8,22.87764775]
[1733833467098,20.0,214.92,214.83,22.87764775]
[1733833468403,23.776884,214.91,214.83,22.87764775]
[1733833468889,23.776884,214.91,214.85,22.87764775]
[1733833469374,7.9353,214.95,214.84,23.57563891]
[1733833469572,0.12549,214.94,214.83,334.87764775]
[1733833470096,0.12549,214.94,214.8,22.87764775]
[1733833470512,0.12549,214.94,214.81,22.87764775]
[1733833471005,20.0,214.88,214.83,22.87764775]
[1733833471296,23.776884,214.91,214.84,22.87764775]
[1733833471502,0.12549,214.94,214.86,22.87764775]
[1733833471681,0.12549,214.94,214.85,22.87764775]
[1733833472513,7.9353,214.95,214.85,22.87764775]
[1733833472675,20.0,214.92,214.85,22.87764775]
[1733833472876,20.0,214.92,214.84,22.87764775]
[1733833473173,20.0,214.92,214.83,23.57562491]
[1733833473578,20.0,214.92,214.84,22.87764775]
[1733833473991,23.776884,214.91,214.85,23.57560693]
[1733833474423,23.776884,214.91,214.84,22.87764775]
[1733833475315,20.0,214.96,214.88,14.2977019]
[1733833475524,0.12549,214.99,214.88,14.2977019]
[1733833475816,7.9252,215.0,214.87,14.2977019]
[1733833476118,7.9252,215.0,214.86,14.2977019]
[1733833476684,7.9252,215.0,214.87,0.69789389]
[1733833476884,23.776884,214.96,214.88,14.2977019]
[1733833477316,23.776884,214.96,214.87,312.0]
[1733833477520,0.12549,214.95,214.85,14.2977019]
[1733833478531,23.776884,214.96,214.87,14.2977019]
[1733833479408,23.776884,214.96,214.85,14.2977019]
[1733833480217,23.776884,214.92,214.84,14.2977019]
[1733833480420,23.776884,214.92,214.83,14.2977019]
[1733833480592,23.776884,214.92,214.84,14.2977019]
[1733833481207,23.776884,214.92,214.85,14.2977019]
[1733833482495,23.776884,214.92,214.84,14.2977019]
[1733833484029,23.776884,214.88,214.79,0.69800192]
[1733833484198,20.0,214.85,214.77,14.2977019]
[1733833484404,23.776884,214.84,214.77,14.2977019]
[1733833484626,23.776884,214.84,214.7,2.23584193]
[1733833484835,23.776884,214.8,214.72,14.2977019]
[1733833485038,20.0,214.86,214.76,14.2977019]
[1733833485330,43.776884,214.85,214.74,14.2977019]
[1733833485502,0.12549,214.84,214.74,14.2977019]
[1733833485827,43.776884,214.85,214.74,14.2977019]
[1733833485993,43.776884,214.85,214.75,14.2977019]
[1733833486195,43.776884,214.85,214.76,14.2977019]
[1733833486398,43.776884,214.85,214.75,14.2977019]
[1733833488420,0.12549,214.84,214.73,14.99596379]
[1733833488620,0.12549,214.84,214.73,14.2977019]
[1733833489020,0.12549,214.84,214.72,14.2977019]
[1733833489223,0.12549,214.84,214.7,14.2977019]
[1733833489439,20.0,214.8,214.7,14.2977019]
[1733833489617,23.902374,214.79,214.7,14.2977019]
[1733833489926,23.776884,214.75,214.68,14.2977019]
[1733833490432,23.776884,214.75,214.67,14.8546682]
[1733833490634,23.776884,214.75,214.68,14.2977019]
[1733833491136,0.12549,214.74,214.67,0.5569663]
[1733833491328,20.0,214.72,214.67,0.5569663]
[1733833491533,23.776884,214.71,214.67,0.5569663]
[1733833492239,0.12549,214.74,214.67,0.5569663]
[1733833492240,43.776884,214.68,214.67,0.5569663]
[1733833493015,0.12549,214.74,214.67,0.5569663]
[1733833493246,23.902374,214.76,214.67,0.5569663]
[1733833493410,23.776884,214.72,214.67,0.5569663]
[1733833493916,0.12549,214.76,214.67,0.5569663]
[1733833494514,0.12549,214.79,214.67,0.5569663]
[1733833495044,23.902374,214.79,214.67,0.5569663]
[1733833495541,23.776884,214.75,214.68,14.2977019]
[1733833495707,23.776884,214.75,214.69,14.2977019]
[1733833495903,20.0,214.77,214.69,14.2977019]
[1733833496327,7.9845,214.8,214.68,14.2977019]
[1733833496537,7.9845,214.8,214.67,0.5569663]
[1733833497149,23.902374,214.79,214.67,0.5569663]
[1733833497358,33.902374,214.79,214.67,0.5569663]
[1733833497750,20.12549,214.74,214.67,0.5569663]
[1733833497931,20.0,214.7,214.67,0.5569663]
[1733833498132,0.12549,214.69,214.67,0.5569663]
[1733833498332,23.902374,214.69,214.67,0.5569663]
[1733833498548,31.886874,214.69,214.67,0.5569663]
[1733833500748,23.902374,214.69,214.67,0.5569663]
[1733833501045,1.5387,214.73,214.67,0.5569663]
[1733833501233,2.8506935,214.77,214.67,0.5569663]
[1733833501433,7.7647,214.79,214.67,0.5569663]
[1733833501645,7.7647,214.79,214.67,326.8546682]
[1733833501932,7.7647,214.79,214.67,14.8546682]
[1733833503259,7.7647,214.79,214.67,0.5569663]
[1733833503560,20.0,214.76,214.69,22.91914967]
[1733833503743,7.7647,214.79,214.69,22.91914967]
[1733833504555,7.7647,214.79,214.68,22.91914967]
[1733833504727,7.7647,214.79,214.67,0.5569663]
[1733833504728,23.902374,214.74,214.67,0.5569663]
[1733833505060,23.776884,214.7,214.67,0.5569663]
[1733833505764,7.7647,214.79,214.67,0.5569663]
[1733833505765,23.776884,214.75,214.67,0.5569663]
[1733833505932,0.12549,214.78,214.67,0.5569663]
[1733833505933,23.776884,214.71,214.67,0.5569663]
[1733833506131,0.12549,214.78,214.67,0.5569663]
[1733833506345,20.0,214.76,214.67,23.47611597]
[1733833506558,0.12549,214.8,214.69,22.91914967]
[1733833506767,6.226,214.84,214.69,22.91914967]
[1733833506928,6.226,214.84,214.71,22.91914967]
[1733833507340,6.226,214.84,214.72,22.91914967]
[1733833507541,6.226,214.84,214.71,22.91914967]
[1733833508132,6.226,214.84,214.7,22.91914967]
[1733833508335,6.226,214.84,214.72,22.91914967]
[1733833508644,7.7647,214.9,214.76,22.91914967]
[1733833508830,7.7647,214.9,214.77,22.91914967]
[1733833509236,2.77322119,214.89,214.77,22.91914967]
[1733833509742,2.77322119,214.89,214.76,22.91914967]